fUST/lending_fUST_20240805
["ID","MTS","AMOUNT","RATE_DAILY","PERIOD"]
[334237340,1722853655657,-500.0,0.00041643,31]
[334237341,1722853655678,-500.0,0.00041643,31]
[334237342,1722853655700,-500.0,0.00041643,31]
[334237343,1722853655722,-500.0,0.00041643,31]
[334237344,1722853655744,-500.0,0.00041643,31]
[334237345,1722853655766,-500.0,0.00041643,31]
[334237346,1722853655787,-517.59065062,0.00041643,31]
[334237347,1722853655809,-500.0,0.00041643,31]
[334237348,1722853655830,-500.0,0.00041643,31]
[334237349,1722853655852,-500.0,0.00041643,31]
[334237350,1722853655874,-500.0,0.00041643,31]
[334237351,1722853655900,-500.0,0.00041643,31]
[334237352,1722853655923,-1021.98,0.00041643,31]
[334237353,1722853655945,-500.0,0.00041643,31]
[334237354,1722853655967,-500.0,0.00041643,31]
[334237355,1722853655991,-500.0,0.00041643,31]
[334237356,1722853656015,-503.97,0.00041643,31]
[334237357,1722853656040,-500.0,0.00041643,31]
[334237358,1722853656063,-509.1622536,0.00041643,31]
[334237359,1722853656085,-500.0,0.00041643,31]
[334237360,1722853656107,-738.95,0.00041643,31]
[334237361,1722853656131,-500.0,0.00041643,31]
[334237362,1722853656157,-500.0,0.00041643,31]
[334237363,1722853656185,-504.11303917,0.00041643,31]
[334237364,1722853656206,-500.0,0.00041643,31]
[334237365,1722853656228,-500.0,0.00041643,31]
[334237366,1722853656250,-563.71982645,0.00041643,31]
[334237367,1722853656271,-500.0,0.00041643,31]
[334237368,1722853656298,-500.0,0.00041643,31]
[334237369,1722853656320,-500.0,0.00041643,31]
[334237370,1722853656344,-500.0,0.00041643,31]
[334237371,1722853656368,-907.21,0.00041643,31]
[334237372,1722853656391,-1127.47,0.00041643,31]
[334237373,1722853656416,-341.82206059,0.00041643,31]
[334237374,1722853656437,-500.0,0.00041643,31]
[334237375,1722853656459,-449.78781009,0.00041643,31]
[334237376,1722853656599,-500.0,0.00041643,31]
[334237377,1722853656621,-500.0,0.00041643,31]
[334237378,1722853656642,-503.6606246,0.00041643,31]
[334237379,1722853656675,-640.99,0.00041643,31]
[334237380,1722853656696,-500.0,0.00041643,31]
[334237381,1722853656718,-500.0,0.00041643,31]
[334237382,1722853656739,-500.0,0.00041643,31]
[334237383,1722853656762,-500.0,0.00041643,31]
[334237384,1722853656784,-500.0,0.00041643,31]
[334237385,1722853656807,-500.0,0.00041643,31]
[334237386,1722853656828,-500.0,0.00041643,31]
[334237387,1722853656850,-500.0,0.00041643,31]
[334237388,1722853656872,-528.75625901,0.00041643,30]
[334237389,1722853656894,-500.0,0.00041643,2]
[334237390,1722853656923,-500.0,0.00041643,31]
[334237391,1722853656947,-500.0,0.00041643,31]
[334237392,1722853656969,-500.0,0.00041643,31]
[334237393,1722853656990,-1725.99,0.00041643,31]
[334237394,1722853657012,-500.0,0.00041643,31]
[334237395,1722853657033,-500.0,0.00041643,31]
[334237396,1722853657056,-200.0,0.00041643,7]
[334237397,1722853657077,-500.0,0.00041643,31]
[334237398,1722853657097,-500.0,0.00041643,31]
[334237399,1722853657119,-500.0,0.00041643,31]
[334237400,1722853657140,-500.0,0.00041643,31]
[334237401,1722853657165,-500.0,0.00041643,31]
[334237402,1722853657186,-578.83,0.00041643,31]
[334237403,1722853657207,-803.96,0.00041643,31]
[334237404,1722853657229,-500.0,0.00041643,31]
[334237405,1722853657250,-500.0,0.00041643,31]
[334237406,1722853657272,-500.0,0.00041643,31]
[334237407,1722853657297,-500.0,0.00041643,31]
[334237408,1722853657322,-1363.98,0.00041643,31]
[334237409,1722853657347,-1437.554007,0.00041643,14]
[334237410,1722853657370,-518.914328,0.00041643,14]
[334237411,1722853657394,-500.0,0.00041643,31]
[334237412,1722853657422,-500.0,0.00041643,31]
[334237413,1722853657446,-1437.554007,0.00041643,14]
[334237414,1722853657470,-500.0,0.00041643,31]
[334237415,1722853657493,-500.0,0.00041643,31]
[334237416,1722853657516,-18.4869092,0.00041643,31]
[334237417,1722853657748,-1016.7330908,0.00041643,31]
[334237418,1722853657774,-500.0,0.00041643,31]
[334237419,1722853657799,-754.18,0.00041643,31]
[334237420,1722853657822,-500.0,0.00041643,31]
[334237421,1722853657846,-518.914328,0.00041643,14]
[334237422,1722853657870,-500.0,0.00041643,31]
[334237423,1722853657894,-500.0,0.00041643,31]
[334237424,1722853657927,-500.0,0.00041643,31]
[334237425,1722853657950,-500.0,0.00041643,31]
[334237426,1722853657973,-500.0,0.00041643,31]
[334237427,1722853657995,-963.68,0.00041643,31]
[334237428,1722853658018,-500.0,0.00041643,31]
[334237429,1722853658041,-500.0,0.00041643,31]
[334237430,1722853658065,-500.0,0.00041643,31]
[334237431,1722853658089,-500.0,0.00041643,31]
[334237432,1722853658112,-500.0,0.00041643,31]
[334237433,1722853658136,-439.48801325,0.00041643,31]
[334237434,1722853658174,-500.0,0.00041643,31]
[334237435,1722853658205,-536.77,0.00041643,31]
[334237436,1722853658228,-500.0,0.00041643,31]
[334237437,1722853658249,-500.0,0.00041643,31]
[334237438,1722853658271,-537.93,0.00041643,31]
[334237439,1722853658298,-500.0,0.00041643,31]
[334237440,1722853658320,-2168.67,0.00041643,31]
[334237441,1722853658343,-500.0,0.00041643,31]
[334237442,1722853658366,-500.0,0.00041643,31]
[334237443,1722853658389,-500.0,0.00041643,31]
[334237444,1722853658420,-500.0,0.00041643,31]
[334237445,1722853658443,-615.43,0.00041643,31]
[334237446,1722853658467,-500.0,0.00041643,31]
[334237447,1722853659779,-1969.57,0.00041643,31]
[334237448,1722853659808,-500.0,0.00041643,31]
[334237449,1722853659833,-500.0,0.00041643,31]
[334237450,1722853659856,-500.0,0.00041643,31]
[334237451,1722853659877,-894.05,0.00041643,31]
[334237452,1722853659904,-500.0,0.00041643,31]
[334237453,1722853659926,-500.0,0.00041643,31]
[334237454,1722853659948,-500.0,0.00041643,31]
[334237455,1722853659971,-1859.03,0.00041643,31]
[334237456,1722853659995,-500.0,0.00041643,31]
[334237457,1722853660018,-592.52,0.00041643,31]
[334237458,1722853660043,-19150.99,0.00041643,31]
[334237459,1722853660066,-500.0,0.00041643,31]
[334237460,1722853660089,-500.0,0.00041643,31]
[334237461,1722853660112,-1391.32,0.00041643,31]
[334237462,1722853660134,-500.0,0.00041643,31]
[334237463,1722853660165,-1512.51,0.00041643,31]
[334237464,1722853660188,-348.02151743,0.00041643,31]
[334237465,1722853660211,-693.02,0.00041643,31]
[334237466,1722853660234,-846.46,0.00041643,31]
[334237467,1722853660256,-500.0,0.00041643,31]
[334237468,1722853660278,-485.97857997,0.00041643,31]
[334237469,1722853660307,-151.0,0.00041643,14]
[334237470,1722853660331,-1083.49,0.00041643,31]
[334237471,1722853660353,-500.0,0.00041643,31]
[334237472,1722853660376,-826.46,0.00041643,31]
[334237473,1722853660403,-500.0,0.00041643,31]
[334237474,1722853660425,-3075.63,0.00041643,21]
[334237475,1722853660450,-500.0,0.00041643,31]
[334237476,1722853660473,-500.0,0.00041643,31]
[334237477,1722853660496,-500.0,0.00041643,31]
[334237478,1722853660519,-4511.09,0.00041643,31]
[334237479,1722853660541,-500.0,0.00041643,31]
[334237480,1722853660562,-500.0,0.00041643,31]
[334237481,1722853660583,-559.65,0.00041643,31]
[334237482,1722853660604,-822.52,0.00041643,31]
[334237483,1722853660625,-512.38607359,0.00041643,31]
[334237484,1722853660646,-588.81,0.00041643,31]
[334237485,1722853660669,-500.0,0.00041643,31]
[334237486,1722853660693,-500.0,0.00041643,31]
[334237487,1722853660716,-877.77,0.00041643,31]
[334237488,1722853660738,-500.0,0.00041643,31]
[334237489,1722853660762,-500.0,0.00041643,31]
[334237490,1722853660784,-8470.86,0.00041643,31]
[334237491,1722853660807,-933.41638,0.00041643,14]
[334237492,1722853660828,-500.0,0.00041643,31]
[334237493,1722853660849,-941.61,0.00041643,31]
[334237494,1722853660871,-3012.07,0.00041643,31]
[334237495,1722853660892,-500.0,0.00041643,31]
[334237496,1722853660926,-1128.78,0.00041643,31]
[334237497,1722853660949,-933.41638,0.00041643,14]
[334237498,1722853660971,-504.20283877,0.00041643,31]
[334237499,1722853660993,-1125.92,0.00041643,31]
[334237500,1722853661015,-591.61,0.00041643,31]
[334237501,1722853661038,-500.0,0.00041643,31]
[334237502,1722853661061,-512.05915879,0.00041643,31]
[334237503,1722853661084,-500.0,0.00041643,31]
[334237504,1722853661106,-506.04064888,0.00041643,31]
[334237505,1722853661129,-627.14,0.00041643,31]
[334237506,1722853661159,-3248.6,0.00041643,31]
[334237507,1722853661181,-563.63896469,0.00041643,31]
[334237508,1722853661204,-1387.17,0.00041643,31]
[334237509,1722853661226,-500.0,0.00041643,31]
[334237510,1722853661250,-236.05539488,0.00041643,31]
[334237511,1722853661272,-500.0,0.00041643,31]
[334237512,1722853661295,-500.0,0.00041643,31]
[334237513,1722853661321,-151.0,0.00041643,14]
[334237514,1722853661343,-500.0,0.00041643,31]
[334237515,1722853661366,-500.0,0.00041643,31]
[334237516,1722853661390,-1789.33,0.00041643,31]
[334237517,1722853661421,-731.63,0.00041643,31]
[334237518,1722853661442,-502.94739758,0.00041643,31]
[334237519,1722853661466,-519.55,0.00041643,31]
[334237520,1722853661489,-500.0,0.00041643,31]
[334237521,1722853661511,-151.0,0.00041643,14]
[334237522,1722853661533,-500.0,0.00041643,31]
[334237523,1722853661555,-500.0,0.00041643,31]
[334237524,1722853661577,-500.0,0.00041643,31]
[334237525,1722853661599,-1151.0,0.00041643,31]
[334237526,1722853661621,-4452.84,0.00041643,31]
[334237527,1722853661642,-500.0,0.00041643,31]
[334237528,1722853661670,-514.0282447,0.00041643,31]
[334237529,1722853661692,-483.027942,0.00041643,14]
[334237530,1722853661713,-151.0,0.00041643,14]
[334237531,1722853661735,-500.0,0.00041643,31]
[334237532,1722853661757,-500.0,0.00041643,31]
[334237533,1722853661779,-534.32078339,0.00041643,90]
[334237534,1722853661802,-483.027942,0.00041643,14]
[334237535,1722853661824,-500.0,0.00041643,31]
[334237536,1722853661845,-500.0,0.00041643,30]
[334237537,1722853661979,-641.65,0.00041643,31]
[334237538,1722853662002,-1346.88,0.00041643,31]
[334237539,1722853662025,-500.0,0.00041643,31]
[334237540,1722853662049,-537.86,0.00041643,31]
[334237541,1722853662072,-500.0,0.00041643,31]
[334237542,1722853662095,-500.0,0.00041643,31]
[334237543,1722853662119,-500.0,0.00041643,31]
[334237544,1722853662141,-3435.94,0.00041643,31]
[334237545,1722853662167,-1243.584411,0.00041643,14]
[334237546,1722853662189,-1610.45,0.00041643,31]
[334237547,1722853662212,-501.11,0.00041643,31]
[334237548,1722853662236,-631.71,0.00041643,31]
[334237549,1722853662258,-503.61893688,0.00041643,31]
[334237550,1722853662283,-1243.584411,0.00041643,14]
[334237551,1722853662315,-500.0,0.00041643,31]
[334237552,1722853662339,-560.77,0.00041643,31]
[334237553,1722853662362,-500.0,0.00041643,31]
[334237554,1722853662387,-500.0,0.00041643,31]
[334237555,1722853662413,-500.0,0.00041643,31]
[334237556,1722853662435,-500.0,0.00041643,31]
[334237557,1722853662457,-500.0,0.00041643,31]
[334237558,1722853662480,-321.21275,0.00041643,14]
[334237559,1722853662505,-1357.63,0.00041643,31]
[334237560,1722853662527,-500.0,0.00041643,31]
[334237561,1722853662549,-505.88479526,0.00041643,31]
[334237562,1722853662572,-1884.58,0.00041643,31]
[334237563,1722853662596,-321.21275,0.00041643,14]
[334237564,1722853662619,-277.289582,0.00041643,14]
[334237565,1722853662641,-500.0,0.00041643,31]
[334237566,1722853662668,-963.17,0.00041643,31]
[334237567,1722853662690,-857.73,0.00041643,31]
[334237568,1722853662713,-1168.8,0.00041643,31]
[334237569,1722853662733,-150.18712567,0.00041643,31]
[334237570,1722853662756,-277.289582,0.00041643,14]
[334237571,1722853662779,-9235.96,0.00041643,31]
[334237572,1722853662801,-500.0,0.00041643,31]
[334237573,1722853662823,-500.0,0.00041643,31]
[334237574,1722853662844,-500.0,0.00041643,31]
[334237575,1722853662865,-500.0,0.00041643,31]
[334237576,1722853662887,-500.0,0.00041643,31]
[334237577,1722853662911,-500.0,0.00041643,31]
[334237578,1722853662934,-604.59,0.00041643,31]
[334237579,1722853662955,-500.0,0.00041643,31]
[334237580,1722853662977,-500.0,0.00041643,31]
[334237581,1722853662999,-500.0,0.00041643,31]
[334237582,1722853663021,-500.0,0.00041643,31]
[334237583,1722853663045,-11808.59,0.00041643,31]
[334237584,1722853663066,-500.0,0.00041643,31]
[334237585,1722853663089,-500.0,0.00041643,31]
[334237586,1722853663111,-509.85959292,0.00041643,31]
[334237587,1722853663133,-500.0,0.00041643,31]
[334237588,1722853663158,-809.91,0.00041643,31]
[334237589,1722853663180,-500.0,0.00041643,31]
[334237590,1722853663201,-500.0,0.00041643,31]
[334237591,1722853663224,-500.0,0.00041643,31]
[334237592,1722853663245,-151.0,0.00041643,14]
[334237593,1722853663267,-500.0,0.00041643,31]
[334237594,1722853663290,-596.41309739,0.00041643,31]
[334237595,1722853663315,-500.0,0.00041643,31]
[334237596,1722853663337,-500.0,0.00041643,31]
[334237597,1722853663359,-500.0,0.00041643,31]
[334237598,1722853663386,-615.96,0.00041643,31]
[334237599,1722853663413,-17525.5,0.00041643,120]
[334237600,1722853663435,-500.0,0.00041643,31]
[334237601,1722853663457,-571.01,0.00041643,31]
[334237602,1722853663484,-1298.09,0.00041643,31]
[334237603,1722853663506,-500.0,0.00041643,31]
[334237604,1722853663528,-500.0,0.00041643,31]
[334237605,1722853663551,-1288.15,0.00041643,31]
[334237606,1722853663573,-500.0,0.00041643,31]
[334237607,1722853663595,-500.0,0.00041643,31]
[334237608,1722853663632,-2034.14,0.00041643,31]
[334237609,1722853663660,-500.0,0.00041643,31]
[334237610,1722853663683,-7111.98,0.00041643,31]
[334237611,1722853663705,-1052.26,0.00041643,31]
[334237612,1722853663728,-1029.46,0.00041643,31]
[334237613,1722853663751,-500.0,0.00041643,31]
[334237614,1722853663776,-549.75979586,0.00041643,31]
[334237615,1722853663799,-500.0,0.00041643,31]
[334237616,1722853663822,-787.74,0.00041643,31]
[334237617,1722853663850,-500.0,0.00041643,31]
[334237618,1722853663874,-500.0,0.00041643,31]
[334237619,1722853663902,-500.0,0.00041643,31]
[334237620,1722853663926,-1039.64,0.00041643,31]
[334237621,1722853663948,-500.0,0.00041643,31]
[334237622,1722853663970,-500.0,0.00041643,31]
[334237623,1722853664139,-500.0,0.00041643,31]
[334237624,1722853664170,-500.0,0.00041643,31]
[334237625,1722853664194,-503.17,0.00041643,31]
[334237626,1722853664222,-500.0,0.00041643,31]
[334237627,1722853664245,-739.79,0.00041643,31]
[334237628,1722853664267,-500.0,0.00041643,31]
[334237629,1722853664291,-500.0,0.00041643,31]
[334237630,1722853664315,-500.0,0.00041643,31]
[334237631,1722853664337,-4532.51,0.00041643,31]
[334237632,1722853664360,-500.0,0.00041643,20]
[334237633,1722853664384,-500.0,0.00041643,31]
[334237634,1722853664409,-507.54,0.00041643,31]
[334237635,1722853664435,-501.81195885,0.00041643,31]
[334237636,1722853664459,-500.0,0.00041643,31]
[334237637,1722853664483,-13308.53,0.00041643,31]
[334237638,1722853664504,-500.0,0.00041643,31]
[334237639,1722853664526,-500.0,0.00041643,31]
[334237640,1722853664548,-907.249179,0.00041643,14]
[334237641,1722853664570,-500.0,0.00041643,31]
[334237642,1722853664592,-907.249179,0.00041643,14]
[334237643,1722853664614,-1147.91,0.00041643,31]
[334237644,1722853664635,-581.74,0.00041643,31]
[334237645,1722853664663,-500.0,0.00041643,31]
[334237646,1722853664684,-500.0,0.00041643,31]
[334237647,1722853664706,-500.0,0.00041643,31]
[334237648,1722853664729,-500.0,0.00041643,31]
[334237649,1722853664753,-500.0,0.00041643,31]
[334237650,1722853664777,-500.0,0.00041643,31]
[334237651,1722853664800,-959.83,0.00041643,31]
[334237652,1722853664823,-500.0,0.00041643,31]
[334237653,1722853664844,-500.0,0.00041643,31]
[334237654,1722853664868,-500.0,0.00041643,31]
[334237655,1722853664890,-500.0,0.00041643,31]
[334237656,1722853664919,-4336.03,0.00041643,31]
[334237657,1722853664941,-500.0,0.00041643,31]
[334237658,1722853664963,-500.0,0.00041643,31]
[334237659,1722853664985,-706.7,0.00041643,31]
[334237660,1722853665006,-500.0,0.00041643,31]
[334237661,1722853665028,-500.0,0.00041643,31]
[334237662,1722853665050,-500.0,0.00041643,31]
[334237663,1722853665072,-500.0,0.00041643,31]
[334237664,1722853665095,-5735.07,0.00041643,31]
[334237665,1722853665118,-581.16,0.00041643,31]
[334237666,1722853665140,-500.0,0.00041643,31]
[334237667,1722853665168,-500.0,0.00041643,31]
[334237668,1722853665190,-500.0,0.00041643,31]
[334237669,1722853665212,-500.0,0.00041643,31]
[334237670,1722853665233,-500.0,0.00041643,31]
[334237671,1722853665255,-500.0,0.00041643,31]
[334237672,1722853665278,-504.86,0.00041643,31]
[334237673,1722853665305,-500.0,0.00041643,31]
[334237674,1722853665328,-603.360278,0.00041643,14]
[334237675,1722853665351,-590.49,0.00041643,31]
[334237676,1722853665374,-500.0,0.00041643,31]
[334237677,1722853665397,-603.360278,0.00041643,14]
[334237678,1722853665428,-241.60926928,0.00041643,31]
[334237679,1722853665449,-150.0,0.000418,30]
[334237680,1722853665472,-152.0,0.00041974,31]
[334237681,1722853665494,-152.0,0.00041974,31]
[334237682,1722853665519,-5000.0,0.00042,42]
[334237683,1722853665541,-500.0,0.00042,120]
[334237684,1722853665563,-5057.02432862,0.00042,120]
[334237685,1722853665588,-300.983418,0.00042,14]
[334237686,1722853665609,-151.0,0.00042,14]
[334237687,1722853665632,-151.0,0.00042,14]
[334237688,1722853665657,-151.0,0.00042,14]
[334237689,1722853665679,-712.78076,0.00042,30]
[334237690,1722853665702,-236.56991232,0.0004219,30]
[334237691,1722853665725,-2039.6,0.00042191,31]
[334237692,1722853665748,-500.0,0.00042191,31]
[334237693,1722853665771,-500.0,0.00042191,2]
[334237694,1722853665793,-934.25,0.00042191,31]
[334237695,1722853665816,-816.59,0.00042191,31]
[334237696,1722853665840,-1188.32,0.00042191,31]
[334237697,1722853665862,-500.0,0.00042191,30]
[334237698,1722853665883,-506.39636042,0.00042191,31]
[334237699,1722853665911,-151.0,0.00042191,14]
[334237700,1722853665933,-498.86377697,0.00042191,31]
[334237701,1722853665955,-151.0,0.00042191,14]
[334237702,1722853665977,-167.031489,0.00042191,14]
[334237703,1722853666000,-223.777552,0.00042191,14]
[334237704,1722853666022,-223.777552,0.00042191,14]
[334237705,1722853666043,-301.926551,0.00042191,14]
[334237706,1722853666065,-301.926551,0.00042191,14]
[334237707,1722853666193,-500.0,0.00042191,31]
[334237708,1722853666215,-500.0,0.00042191,31]
[334237709,1722853666238,-500.0,0.00042191,31]
[334237710,1722853666260,-300.983418,0.00042191,14]
[334237711,1722853666283,-300.983418,0.00042191,14]
[334237712,1722853666306,-151.0,0.00042191,14]
[334237713,1722853666329,-338.72354106,0.00042191,31]
[334237714,1722853666351,-504.58354301,0.00042191,31]
[334237715,1722853666373,-500.0,0.00042191,31]
[334237716,1722853666397,-500.0,0.00042191,31]
[334237717,1722853666423,-500.0,0.00042191,31]
[334237718,1722853666444,-500.0,0.00042191,31]
[334237719,1722853666469,-500.0,0.00042191,31]
[334237720,1722853666491,-500.0,0.00042191,31]
[334237721,1722853666512,-500.38299527,0.00042191,31]
[334237722,1722853666534,-151.0,0.00042191,14]
[334237723,1722853666558,-151.0,0.00042191,14]
[334237724,1722853666580,-500.0,0.00042191,31]
[334237725,1722853666601,-500.0,0.00042191,31]
[334237726,1722853666623,-500.0,0.00042191,31]
[334237727,1722853666644,-500.0,0.00042191,31]
[334237728,1722853666671,-500.0,0.00042191,31]
[334237729,1722853666693,-151.0,0.00042191,14]
[334237730,1722853666715,-500.0,0.00042191,31]
[334237731,1722853666738,-500.0,0.00042191,31]
[334237732,1722853666761,-151.0,0.00042191,14]
[334237733,1722853666783,-151.0,0.00042191,14]
[334237734,1722853666804,-500.0,0.00042191,31]
[334237735,1722853666827,-151.0,0.00042191,2]
[334237736,1722853666850,-500.0,0.00042191,31]
[334237737,1722853666872,-500.0,0.00042191,31]
[334237738,1722853666895,-500.0,0.00042191,31]
[334237739,1722853666924,-500.0,0.00042191,31]
[334237740,1722853666945,-151.0,0.00042191,14]
[334237741,1722853666967,-500.0,0.00042191,31]
[334237742,1722853666989,-151.0,0.00042191,14]
[334237743,1722853667012,-500.0,0.00042191,31]
[334237744,1722853667035,-500.0,0.00042191,31]
[334237745,1722853667057,-500.0,0.00042191,31]
[334237746,1722853667079,-548.78703921,0.00042191,31]
[334237747,1722853667102,-500.0,0.00042191,31]
[334237748,1722853667125,-500.0,0.00042191,31]
[334237749,1722853667156,-500.0,0.00042191,31]
[334237750,1722853667179,-558.25090613,0.00042191,31]
[334237751,1722853667202,-500.0,0.00042191,31]
[334237752,1722853667224,-500.0,0.00042191,31]
[334237753,1722853667246,-500.0,0.00042191,31]
[334237754,1722853667268,-500.0,0.00042191,31]
[334237755,1722853667293,-500.0,0.00042191,31]
[334237756,1722853667315,-500.0,0.00042191,31]
[334237757,1722853667340,-151.0,0.00042191,14]
[334237758,1722853667362,-500.0,0.00042191,31]
[334237759,1722853667387,-402.98591256,0.00042191,31]
[334237760,1722853667412,-349.01774251,0.00042191,31]
[334237761,1722853667434,-500.0,0.00042191,31]
[334237762,1722853667457,-500.0,0.00042191,31]
[334237763,1722853667481,-426.19573519,0.00042191,31]
[334237764,1722853667503,-151.0,0.00042191,14]
[334237765,1722853667524,-182.141029,0.00042191,14]
[334237766,1722853667547,-916.42,0.00042191,31]
[334237767,1722853667568,-497.80420372,0.00042191,31]
[334237768,1722853667590,-500.0,0.00042191,31]
[334237769,1722853667611,-285.07522732,0.00042191,31]
[334237770,1722853667632,-1238.32,0.00042191,31]
[334237771,1722853667656,-528.63312571,0.00042191,31]
[334237772,1722853667677,-154.69459691,0.00042191,31]
[334237773,1722853667698,-206.35229684,0.00042191,31]
[334237774,1722853667719,-500.0,0.00042191,31]
[334237775,1722853667742,-500.0,0.00042191,31]
[334237776,1722853667764,-500.0,0.00042191,31]
[334237777,1722853667786,-1344.12,0.00042191,31]
[334237778,1722853667809,-500.0,0.00042191,31]
[334237779,1722853667831,-579.77,0.00042191,31]
[334237780,1722853667854,-334.2625265,0.00042191,31]
[334237781,1722853667875,-508.27,0.00042191,31]
[334237782,1722853667897,-500.0,0.00042191,31]
[334237783,1722853667923,-701.19,0.00042191,31]
[334237784,1722853667945,-500.0,0.00042191,31]
[334237785,1722853667965,-500.0,0.00042191,31]
[334237786,1722853668083,-500.0,0.00042191,31]
[334237787,1722853668111,-500.0,0.00042191,31]
[334237788,1722853668134,-500.0,0.00042191,31]
[334237789,1722853668165,-449.02274609,0.00042191,31]
[334237790,1722853668188,-500.0,0.00042191,31]
[334237791,1722853668209,-151.0,0.00042191,14]
[334237792,1722853668230,-500.0,0.00042191,31]
[334237793,1722853668252,-246.500666,0.00042191,14]
[334237794,1722853668274,-500.0,0.00042191,31]
[334237795,1722853668297,-246.500666,0.00042191,14]
[334237796,1722853668324,-316.31968146,0.00042191,31]
[334237797,1722853668349,-500.0,0.00042191,31]
[334237798,1722853668372,-500.0,0.00042191,31]
[334237799,1722853668397,-500.0,0.00042191,31]
[334237800,1722853668424,-500.0,0.00042191,31]
[334237801,1722853668448,-500.0,0.00042191,31]
[334237802,1722853668473,-500.0,0.00042191,31]
[334237803,1722853668497,-500.0,0.00042191,31]
[334237804,1722853668520,-500.0,0.00042191,31]
[334237805,1722853668543,-500.0,0.00042191,31]
[334237806,1722853668565,-500.0,0.00042191,31]
[334237807,1722853668587,-500.0,0.00042191,31]
[334237808,1722853668610,-500.0,0.00042191,31]
[334237809,1722853668632,-500.0,0.00042191,31]
[334237810,1722853668660,-506.92874567,0.00042191,31]
[334237811,1722853668682,-500.0,0.00042191,31]
[334237812,1722853668705,-1294.28,0.00042191,31]
[334237813,1722853668727,-534.98,0.00042191,31]
[334237814,1722853668749,-500.0,0.00042191,31]
[334237815,1722853668772,-500.0,0.00042191,31]
[334237816,1722853668794,-500.0,0.00042191,31]
[334237817,1722853668816,-170.649318,0.00042191,14]
[334237818,1722853668838,-500.0,0.00042191,31]
[334237819,1722853668861,-793.78,0.00042191,31]
[334237820,1722853668883,-500.0,0.00042191,6]
[334237821,1722853668910,-170.649318,0.00042191,14]
[334237822,1722853668933,-507.67729854,0.00042191,31]
[334237823,1722853668955,-500.0,0.00042191,31]
[334237824,1722853668978,-500.0,0.00042191,31]
[334237825,1722853669006,-285.05460525,0.00042191,31]
[334237826,1722853669028,-500.0,0.00042191,2]
[334237827,1722853669051,-534.27011258,0.00042191,31]
[334237828,1722853669073,-500.0,0.00042191,31]
[334237829,1722853669095,-500.0,0.00042191,31]
[334237830,1722853669117,-500.0,0.00042191,31]
[334237831,1722853669140,-500.0,0.00042191,31]
[334237832,1722853669167,-500.0,0.00042191,31]
[334237833,1722853669189,-151.0,0.00042191,14]
[334237834,1722853669212,-744.45,0.00042191,31]
[334237835,1722853669234,-500.0,0.00042191,31]
[334237836,1722853669255,-500.0,0.00042191,31]
[334237837,1722853669277,-514.97377139,0.00042191,31]
[334237838,1722853669303,-500.0,0.00042191,31]
[334237839,1722853669326,-1515.98,0.00042191,31]